[Event "Early-Titled-Tuesday-Blitz-February-06-2024"]
[Site "Chess.com"]
[Date "2024.02.06"]
[Round "10"]
[White "Kunalm64"]
[Black "Flaccidmoves"]
[Result "0-1"]
[WhiteElo "2547"]
[BlackElo "2465"]
[TimeControl "180+1"]
[EndTime "9:56:09 PST"]
[Termination "Flaccidmoves won by checkmate"]

1. e4 {[%clk 0:02:54]} 1... e6 {[%clk 0:02:59.4]} 2. d4 {[%clk 0:02:53.1]} 2...
d5 {[%clk 0:03:00.1]} 3. Nd2 {[%clk 0:02:53.3]} 3... c5 {[%clk 0:02:59.4]} 4.
Ngf3 {[%clk 0:02:51.2]} 4... Nc6 {[%clk 0:02:58.4]} 5. Bb5 {[%clk 0:02:46.2]}
5... Nf6 {[%clk 0:02:53]} 6. exd5 {[%clk 0:02:42.3]} 6... exd5 {[%clk
0:02:52.7]} 7. O-O {[%clk 0:02:39.9]} 7... Be7 {[%clk 0:02:46.3]} 8. dxc5 {[%clk
0:02:39.1]} 8... Bxc5 {[%clk 0:02:47.2]} 9. Re1+ {[%clk 0:02:38.1]} 9... Be6
{[%clk 0:02:45.4]} 10. Nb3 {[%clk 0:02:37.3]} 10... Bb6 {[%clk 0:02:42]} 11.
Nbd4 {[%clk 0:02:36.2]} 11... O-O {[%clk 0:02:41.3]} 12. c3 {[%clk 0:02:09.3]}
12... Ne4 {[%clk 0:02:36.8]} 13. Be3 {[%clk 0:02:05.6]} 13... Qd6 {[%clk
0:02:26.9]} 14. Nxe6 {[%clk 0:01:51.3]} 14... Qxe6 {[%clk 0:02:09.1]} 15. Bxb6
{[%clk 0:01:46.1]} 15... axb6 {[%clk 0:02:10]} 16. Nd4 {[%clk 0:01:44.2]} 16...
Qf6 {[%clk 0:02:04]} 17. f3 {[%clk 0:01:26.2]} 17... Nc5 {[%clk 0:02:03.6]} 18.
Qd2 {[%clk 0:01:17.2]} 18... Nxd4 {[%clk 0:02:01.6]} 19. Qxd4 {[%clk 0:01:09.4]}
19... Qxd4+ {[%clk 0:02:00.9]} 20. cxd4 {[%clk 0:01:07.3]} 20... Ne6 {[%clk
0:02:01.4]} 21. Red1 {[%clk 0:01:03.8]} 21... Rfc8 {[%clk 0:01:52.9]} 22. Rd2
{[%clk 0:00:52.9]} 22... Ra5 {[%clk 0:01:34.3]} 23. a4 {[%clk 0:00:49.8]} 23...
Kf8 {[%clk 0:01:25.3]} 24. Re1 {[%clk 0:00:45.7]} 24... Ke7 {[%clk 0:01:19.2]}
25. h4 {[%clk 0:00:30.5]} 25... Kd6 {[%clk 0:01:15.1]} 26. Kf2 {[%clk 0:00:28]}
26... Raa8 {[%clk 0:00:55.2]} 27. h5 {[%clk 0:00:17.2]} 27... h6 {[%clk
0:00:54.1]} 28. Re3 {[%clk 0:00:12.8]} 28... Rc7 {[%clk 0:00:50]} 29. g4 {[%clk
0:00:12.5]} 29... Rac8 {[%clk 0:00:47.8]} 30. Kg3 {[%clk 0:00:12.5]} 30... Rc2
{[%clk 0:00:43.5]} 31. Ree2 {[%clk 0:00:12.7]} 31... Rxd2 {[%clk 0:00:37.1]} 32.
Rxd2 {[%clk 0:00:12.8]} 32... Rc1 {[%clk 0:00:37.7]} 33. f4 {[%clk 0:00:12]}
33... Re1 {[%clk 0:00:32.8]} 34. f5 {[%clk 0:00:09.1]} 34... Ng5 {[%clk
0:00:31.5]} 35. Rc2 {[%clk 0:00:08.7]} 35... Rd1 {[%clk 0:00:20.2]} 36. Rc8
{[%clk 0:00:07.8]} 36... Rxd4 {[%clk 0:00:20.1]} 37. Rg8 {[%clk 0:00:07.4]}
37... Rb4 {[%clk 0:00:16]} 38. Rxg7 {[%clk 0:00:07]} 38... Rb3+ {[%clk
0:00:15.9]} 39. Kg2 {[%clk 0:00:06.4]} 39... Rxb2+ {[%clk 0:00:15.8]} 40. Kg3
{[%clk 0:00:04.8]} 40... Rb3+ {[%clk 0:00:15.9]} 41. Kg2 {[%clk 0:00:04.6]}
41... Ke5 {[%clk 0:00:16.2]} 42. Rg8 {[%clk 0:00:04]} 42... Kf4 {[%clk 0:00:16]}
43. Rh8 {[%clk 0:00:03.7]} 43... Rb2+ {[%clk 0:00:15.5]} 44. Kf1 {[%clk
0:00:03.2]} 44... Kf3 {[%clk 0:00:13.5]} 45. Ke1 {[%clk 0:00:03.5]} 45... Ne4
{[%clk 0:00:13.5]} 46. Kd1 {[%clk 0:00:01.9]} 46... d4 {[%clk 0:00:12]} 47. Kc1
{[%clk 0:00:02.2]} 47... Rg2 {[%clk 0:00:11]} 48. Rxh6 {[%clk 0:00:02.7]} 48...
Ke3 {[%clk 0:00:11.2]} 49. Rh7 {[%clk 0:00:02.7]} 49... d3 {[%clk 0:00:11.5]}
50. Bxd3 {[%clk 0:00:02.6]} 50... Kxd3 {[%clk 0:00:11.4]} 51. Rxf7 {[%clk
0:00:03.2]} 51... Kc3 {[%clk 0:00:08.9]} 52. Rc7+ {[%clk 0:00:03.1]} 52... Nc5
{[%clk 0:00:09.1]} 53. a5 {[%clk 0:00:03.3]} 53... Rg1# {[%clk 0:00:07.6]} 0-1

[Event "Early-Titled-Tuesday-Blitz-February-06-2024"]
[Site "Chess.com"]
[Date "2024.02.06"]
[Round "10"]
[White "Bilan_Danila"]
[Black "AA95"]
[Result "1-0"]
[WhiteElo "2614"]
[BlackElo "2508"]
[TimeControl "180+1"]
[EndTime "9:56:13 PST"]
[Termination "Bilan_Danila won by checkmate"]

1. d4 {[%clk 0:02:53.6]} 1... Nf6 {[%clk 0:02:59.8]} 2. Nf3 {[%clk 0:02:52.5]}
2... g6 {[%clk 0:02:59.7]} 3. Bg5 {[%clk 0:02:51.1]} 3... Ne4 {[%clk 0:02:58.9]}
4. Bh4 {[%clk 0:02:50.7]} 4... Bg7 {[%clk 0:02:58.8]} 5. c3 {[%clk 0:02:49.3]}
5... O-O {[%clk 0:02:58.4]} 6. Nbd2 {[%clk 0:02:48.7]} 6... d5 {[%clk
0:02:58.1]} 7. e3 {[%clk 0:02:48.4]} 7... c5 {[%clk 0:02:58]} 8. Nxe4 {[%clk
0:02:46.8]} 8... dxe4 {[%clk 0:02:57.9]} 9. Nd2 {[%clk 0:02:47.5]} 9... cxd4
{[%clk 0:02:49.5]} 10. cxd4 {[%clk 0:02:48.4]} 10... Qa5 {[%clk 0:02:44.2]} 11.
Bxe7 {[%clk 0:02:34.4]} 11... Re8 {[%clk 0:02:44]} 12. Bh4 {[%clk 0:02:15.5]}
12... Nc6 {[%clk 0:02:29.9]} 13. Bc4 {[%clk 0:01:57.2]} 13... Be6 {[%clk
0:02:03.3]} 14. O-O {[%clk 0:01:45.5]} 14... Nb4 {[%clk 0:01:34.8]} 15. Qb3
{[%clk 0:01:01.8]} 15... Nd3 {[%clk 0:01:32.9]} 16. Bxe6 {[%clk 0:00:46.6]}
16... Rxe6 {[%clk 0:01:30.9]} 17. Nc4 {[%clk 0:00:41.3]} 17... Qd5 {[%clk
0:01:21.8]} 18. Bg3 {[%clk 0:00:30.2]} 18... Rc8 {[%clk 0:01:19.6]} 19. Nd2
{[%clk 0:00:23.3]} 19... Qxb3 {[%clk 0:01:12.2]} 20. axb3 {[%clk 0:00:22.2]}
20... Rc2 {[%clk 0:01:10.8]} 21. Nc4 {[%clk 0:00:20]} 21... a6 {[%clk
0:01:10.4]} 22. Rfd1 {[%clk 0:00:10.6]} 22... Bf6 {[%clk 0:01:04.9]} 23. h3
{[%clk 0:00:06.1]} 23... Kf8 {[%clk 0:01:02.6]} 24. d5 {[%clk 0:00:02.9]} 24...
Re8 {[%clk 0:01:00.5]} 25. Nd6 {[%clk 0:00:02.9]} 25... Nxb2 {[%clk 0:00:54.3]}
26. Nxe8 {[%clk 0:00:03]} 26... Kxe8 {[%clk 0:00:54]} 27. Rdc1 {[%clk 0:00:03]}
27... Rd2 {[%clk 0:00:43.4]} 28. Rc8+ {[%clk 0:00:03.4]} 28... Ke7 {[%clk
0:00:42.7]} 29. Rac1 {[%clk 0:00:04.1]} 29... Rxd5 {[%clk 0:00:39.3]} 30. R1c7+
{[%clk 0:00:03.8]} 30... Ke6 {[%clk 0:00:39.2]} 31. Rxb7 {[%clk 0:00:03.2]}
31... Nd3 {[%clk 0:00:14.7]} 32. Rc6+ {[%clk 0:00:03.2]} 32... Kf5 {[%clk
0:00:14.4]} 33. Rxf7 {[%clk 0:00:03.9]} 33... Kg5 {[%clk 0:00:11.2]} 34. Rcxf6
{[%clk 0:00:04]} 34... Ne1 {[%clk 0:00:11.1]} 35. Bf4+ {[%clk 0:00:04.2]} 35...
Kh4 {[%clk 0:00:10.5]} 36. Rxh7+ {[%clk 0:00:04.4]} 36... Rh5 {[%clk 0:00:10.1]}
37. Rxh5+ {[%clk 0:00:04.9]} 37... Kxh5 {[%clk 0:00:10.1]} 38. Kh2 {[%clk
0:00:03.6]} 38... Nf3+ {[%clk 0:00:10.1]} 39. gxf3 {[%clk 0:00:03.8]} 39... a5
{[%clk 0:00:10.5]} 40. fxe4 {[%clk 0:00:03.6]} 40... a4 {[%clk 0:00:10.8]} 41.
bxa4 {[%clk 0:00:04.1]} 41... g5 {[%clk 0:00:10.4]} 42. Rf5 {[%clk 0:00:04.6]}
42... Kh4 {[%clk 0:00:10.2]} 43. Bxg5+ {[%clk 0:00:05.1]} 43... Kh5 {[%clk
0:00:10.2]} 44. Kg3 {[%clk 0:00:05.6]} 44... Kg6 {[%clk 0:00:10.4]} 45. Kg4
{[%clk 0:00:06.3]} 45... Kg7 {[%clk 0:00:10.7]} 46. a5 {[%clk 0:00:06.8]} 46...
Kg6 {[%clk 0:00:11.1]} 47. a6 {[%clk 0:00:07.7]} 47... Kh7 {[%clk 0:00:11.9]}
48. a7 {[%clk 0:00:08.3]} 48... Kg7 {[%clk 0:00:12.8]} 49. a8=Q {[%clk
0:00:08.3]} 49... Kg6 {[%clk 0:00:12.7]} 50. Qc6+ {[%clk 0:00:08.7]} 50... Kg7
{[%clk 0:00:12.8]} 51. Qd7+ {[%clk 0:00:09.2]} 51... Kh8 {[%clk 0:00:11.6]} 52.
Qe8+ {[%clk 0:00:08.8]} 52... Kg7 {[%clk 0:00:09.7]} 53. Rf7+ {[%clk 0:00:09.7]}
53... Kg6 {[%clk 0:00:06.5]} 54. Qe6# {[%clk 0:00:10.6]} 1-0

[Event "Early-Titled-Tuesday-Blitz-February-06-2024"]
[Site "Chess.com"]
[Date "2024.02.06"]
[Round "10"]
[White "lilleper1"]
[Black "dropstoneDP"]
[Result "1/2-1/2"]
[WhiteElo "2931"]
[BlackElo "3029"]
[TimeControl "180+1"]
[EndTime "9:56:15 PST"]
[Termination "Game drawn by repetition"]

1. e4 {[%clk 0:03:00.9]} 1... e5 {[%clk 0:02:59.7]} 2. Nf3 {[%clk 0:03:01.2]}
2... Nf6 {[%clk 0:02:59.5]} 3. Nxe5 {[%clk 0:02:54.2]} 3... d6 {[%clk
0:02:57.8]} 4. Nf3 {[%clk 0:02:54.3]} 4... Nxe4 {[%clk 0:02:58.4]} 5. d4 {[%clk
0:02:54.6]} 5... d5 {[%clk 0:02:58.5]} 6. Bd3 {[%clk 0:02:54.7]} 6... Bd6 {[%clk
0:02:58.9]} 7. O-O {[%clk 0:02:53.9]} 7... O-O {[%clk 0:02:59.5]} 8. c4 {[%clk
0:02:53.9]} 8... c6 {[%clk 0:03:00]} 9. cxd5 {[%clk 0:02:53.1]} 9... cxd5 {[%clk
0:03:00.9]} 10. Nc3 {[%clk 0:02:52.9]} 10... Nxc3 {[%clk 0:03:01.5]} 11. bxc3
{[%clk 0:02:53.8]} 11... Bg4 {[%clk 0:03:01.6]} 12. h3 {[%clk 0:02:53.7]} 12...
Bh5 {[%clk 0:03:01.8]} 13. Rb1 {[%clk 0:02:53.5]} 13... Nd7 {[%clk 0:03:02.2]}
14. Rb5 {[%clk 0:02:50.1]} 14... Nf6 {[%clk 0:02:58.8]} 15. Bg5 {[%clk
0:02:43.5]} 15... a6 {[%clk 0:02:59]} 16. Bxf6 {[%clk 0:02:38.7]} 16... Qxf6
{[%clk 0:02:59.9]} 17. Rxd5 {[%clk 0:02:38.6]} 17... Bxf3 {[%clk 0:03:00.1]} 18.
Qxf3 {[%clk 0:02:38.6]} 18... Qxf3 {[%clk 0:03:00.6]} 19. gxf3 {[%clk
0:02:39.5]} 19... Rfd8 {[%clk 0:02:59.9]} 20. c4 {[%clk 0:02:30.3]} 20... Be7
{[%clk 0:02:53.6]} 21. Be4 {[%clk 0:02:27.1]} 21... Bf6 {[%clk 0:02:12.4]} 22.
Rb1 {[%clk 0:02:24.3]} 22... b5 {[%clk 0:01:09.2]} 23. cxb5 {[%clk 0:01:42.8]}
23... axb5 {[%clk 0:01:06.9]} 24. Rbxb5 {[%clk 0:01:42]} 24... Rxd5 {[%clk
0:01:00.9]} 25. Bxd5 {[%clk 0:01:40.8]} 25... Rd8 {[%clk 0:01:00.1]} 26. a4
{[%clk 0:01:35.4]} 26... Bxd4 {[%clk 0:00:59.3]} 27. a5 {[%clk 0:01:11.2]} 27...
g6 {[%clk 0:00:49.1]} 28. a6 {[%clk 0:00:52]} 28... Kg7 {[%clk 0:00:47.5]} 29.
Be4 {[%clk 0:00:48.3]} 29... Rd6 {[%clk 0:00:41.8]} 30. Bb7 {[%clk 0:00:43.1]}
30... f5 {[%clk 0:00:38.7]} 31. Kf1 {[%clk 0:00:38.9]} 31... Kf6 {[%clk
0:00:32.7]} 32. Ke2 {[%clk 0:00:38]} 32... Re6+ {[%clk 0:00:32.6]} 33. Kf1
{[%clk 0:00:37.5]} 33... Rd6 {[%clk 0:00:30.9]} 34. Rb4 {[%clk 0:00:35.7]} 34...
Ba7 {[%clk 0:00:30.6]} 35. Rb2 {[%clk 0:00:34.2]} 35... Kg5 {[%clk 0:00:29.6]}
36. Rc2 {[%clk 0:00:30.3]} 36... Rd7 {[%clk 0:00:26.8]} 37. Kg2 {[%clk
0:00:29.1]} 37... Kh4 {[%clk 0:00:25.5]} 38. Bc8 {[%clk 0:00:27.6]} 38... Re7
{[%clk 0:00:24.4]} 39. Rc4+ {[%clk 0:00:26.3]} 39... Kg5 {[%clk 0:00:24.9]} 40.
Rc2 {[%clk 0:00:24.1]} 40... Kh4 {[%clk 0:00:25]} 41. Rb2 {[%clk 0:00:22.8]}
41... Kg5 {[%clk 0:00:22.7]} 42. Bb7 {[%clk 0:00:21.7]} 42... Rc7 {[%clk
0:00:21.8]} 43. Bd5 {[%clk 0:00:21.2]} 43... Rd7 {[%clk 0:00:21.8]} 44. Bg8
{[%clk 0:00:20.6]} 44... Rg7 {[%clk 0:00:14.2]} 45. Rb7 {[%clk 0:00:19.5]} 45...
Rxb7 {[%clk 0:00:14.5]} 46. axb7 {[%clk 0:00:20.4]} 46... h5 {[%clk 0:00:09.6]}
47. Bf7 {[%clk 0:00:20.2]} 47... Kf6 {[%clk 0:00:09.9]} 48. Be8 {[%clk
0:00:20.5]} 48... Kg5 {[%clk 0:00:09.9]} 49. Kf1 {[%clk 0:00:18.6]} 49... h4
{[%clk 0:00:08.6]} 50. Ke2 {[%clk 0:00:18.4]} 50... Kf6 {[%clk 0:00:06.9]} 51.
Kd3 {[%clk 0:00:15.9]} 51... g5 {[%clk 0:00:07.2]} 52. Kc4 {[%clk 0:00:15.4]}
52... Ke5 {[%clk 0:00:07.7]} 53. Bd7 {[%clk 0:00:11.9]} 53... Kd6 {[%clk
0:00:08]} 54. Bxf5 {[%clk 0:00:11.4]} 54... Kc7 {[%clk 0:00:08.5]} 55. Be4
{[%clk 0:00:11.4]} 55... Bxf2 {[%clk 0:00:09]} 56. Kd5 {[%clk 0:00:10.6]} 56...
Kxb7 {[%clk 0:00:08.5]} 57. Ke6+ {[%clk 0:00:11]} 57... Kc7 {[%clk 0:00:09]} 58.
Kf5 {[%clk 0:00:11.6]} 58... Be3 {[%clk 0:00:09.6]} 59. Kg4 {[%clk 0:00:12.2]}
59... Bf4 {[%clk 0:00:10.5]} 60. Bf5 {[%clk 0:00:10.6]} 60... Kd6 {[%clk
0:00:11.4]} 61. Be4 {[%clk 0:00:10.9]} 61... Kc5 {[%clk 0:00:12.3]} 62. Bf5
{[%clk 0:00:11.5]} 62... Kd6 {[%clk 0:00:13.2]} 63. Be4 {[%clk 0:00:12.1]} 63...
Kc5 {[%clk 0:00:14.1]} 64. Bf5 {[%clk 0:00:12.7]} 64... Kd6 {[%clk 0:00:15]}
1/2-1/2

[Event "Early-Titled-Tuesday-Blitz-February-06-2024"]
[Site "Chess.com"]
[Date "2024.02.06"]
[Round "10"]
[White "Laico"]
[Black "Barmen_EV"]
[Result "1-0"]
[WhiteElo "2384"]
[BlackElo "2484"]
[TimeControl "180+1"]
[EndTime "9:56:16 PST"]
[Termination "Laico won by checkmate"]

1. e4 {[%clk 0:02:56.9]} 1... c5 {[%clk 0:03:00]} 2. Nc3 {[%clk 0:02:57.4]} 2...
Nc6 {[%clk 0:03:00.4]} 3. f4 {[%clk 0:02:58.3]} 3... e6 {[%clk 0:02:59.9]} 4.
Nf3 {[%clk 0:02:59.2]} 4... g6 {[%clk 0:02:59]} 5. Bb5 {[%clk 0:02:59.7]} 5...
Nge7 {[%clk 0:02:59]} 6. f5 {[%clk 0:02:57.9]} 6... exf5 {[%clk 0:02:54.2]} 7.
d3 {[%clk 0:02:56.1]} 7... Bg7 {[%clk 0:02:51]} 8. Bxc6 {[%clk 0:02:55.5]} 8...
dxc6 {[%clk 0:02:48.7]} 9. O-O {[%clk 0:02:55]} 9... O-O {[%clk 0:02:48.3]} 10.
Qe1 {[%clk 0:02:54.6]} 10... fxe4 {[%clk 0:02:47.4]} 11. dxe4 {[%clk 0:02:55.5]}
11... Bg4 {[%clk 0:02:45.8]} 12. Qh4 {[%clk 0:02:46]} 12... Bxf3 {[%clk
0:02:43]} 13. Rxf3 {[%clk 0:02:46.9]} 13... c4 {[%clk 0:02:32]} 14. Kh1 {[%clk
0:02:24.6]} 14... Bxc3 {[%clk 0:02:20.3]} 15. Bg5 {[%clk 0:02:22.2]} 15... f6
{[%clk 0:02:13.2]} 16. Bh6 {[%clk 0:02:22.5]} 16... Bxb2 {[%clk 0:02:06.5]} 17.
Rb1 {[%clk 0:02:21.2]} 17... Rf7 {[%clk 0:01:55]} 18. Qh3 {[%clk 0:02:07.6]}
18... Be5 {[%clk 0:01:48.8]} 19. Qe6 {[%clk 0:02:07.1]} 19... Qc8 {[%clk
0:01:43.9]} 20. Qxc4 {[%clk 0:02:06.6]} 20... Qd7 {[%clk 0:01:35.1]} 21. Rd3
{[%clk 0:02:03.6]} 21... Qc7 {[%clk 0:01:30.6]} 22. Rbd1 {[%clk 0:02:02.2]}
22... b5 {[%clk 0:01:17.2]} 23. Qe6 {[%clk 0:02:01.5]} 23... Bf4 {[%clk
0:00:49.5]} 24. Rd7 {[%clk 0:01:10.7]} 24... Qxd7 {[%clk 0:00:42]} 25. Rxd7
{[%clk 0:01:07.8]} 25... Bxh6 {[%clk 0:00:42.2]} 26. Rxe7 {[%clk 0:01:06.2]}
26... Rf8 {[%clk 0:00:42.8]} 27. Rxa7 {[%clk 0:00:56]} 27... Kg7 {[%clk
0:00:40.9]} 28. Rxf7+ {[%clk 0:00:55.7]} 28... Rxf7 {[%clk 0:00:41.8]} 29. Qxc6
{[%clk 0:00:56]} 29... b4 {[%clk 0:00:36.1]} 30. Qd6 {[%clk 0:00:39]} 30... Rb7
{[%clk 0:00:20]} 31. g3 {[%clk 0:00:33.1]} 31... Bc1 {[%clk 0:00:16.9]} 32. e5
{[%clk 0:00:25.3]} 32... fxe5 {[%clk 0:00:13]} 33. Qxe5+ {[%clk 0:00:26.2]}
33... Kh6 {[%clk 0:00:13.7]} 34. Qe4 {[%clk 0:00:19.5]} 34... Rb6 {[%clk
0:00:12]} 35. Qh4+ {[%clk 0:00:14.6]} 35... Kg7 {[%clk 0:00:11.9]} 36. Qe7+
{[%clk 0:00:15.5]} 36... Kh6 {[%clk 0:00:11.9]} 37. Qf8+ {[%clk 0:00:15.3]}
37... Kh5 {[%clk 0:00:11.1]} 38. Qc5+ {[%clk 0:00:11.1]} 38... Kg4 {[%clk
0:00:10.3]} 39. Qxb6 {[%clk 0:00:11.2]} 39... Kh3 {[%clk 0:00:11.2]} 40. Qxb4
{[%clk 0:00:10.2]} 40... g5 {[%clk 0:00:12.1]} 41. Qe1 {[%clk 0:00:08.7]} 41...
Kg4 {[%clk 0:00:11.1]} 42. Qxc1 {[%clk 0:00:08.4]} 42... Kf5 {[%clk 0:00:11.6]}
43. a4 {[%clk 0:00:08]} 43... h5 {[%clk 0:00:12.5]} 44. a5 {[%clk 0:00:08.4]}
44... h4 {[%clk 0:00:13.4]} 45. gxh4 {[%clk 0:00:08.3]} 45... g4 {[%clk
0:00:13.3]} 46. a6 {[%clk 0:00:08]} 46... g3 {[%clk 0:00:14.2]} 47. hxg3 {[%clk
0:00:07.6]} 47... Kg4 {[%clk 0:00:14.7]} 48. Qf4+ {[%clk 0:00:05.7]} 48... Kh3
{[%clk 0:00:15.6]} 49. Qf1+ {[%clk 0:00:04.5]} 49... Kg4 {[%clk 0:00:16.5]} 50.
Qe2+ {[%clk 0:00:03.6]} 50... Kh3 {[%clk 0:00:16.5]} 51. h5 {[%clk 0:00:03.2]}
51... Kxg3 {[%clk 0:00:16.6]} 52. h6 {[%clk 0:00:03.7]} 52... Kh3 {[%clk
0:00:16]} 53. h7 {[%clk 0:00:04.1]} 53... Kg3 {[%clk 0:00:16.9]} 54. a7 {[%clk
0:00:04.1]} 54... Kf4 {[%clk 0:00:17.8]} 55. a8=Q {[%clk 0:00:03.4]} 55... Kg5
{[%clk 0:00:18.7]} 56. Qag2+ {[%clk 0:00:03.4]} 56... Kf5 {[%clk 0:00:19.1]} 57.
Qef3+ {[%clk 0:00:03.5]} 57... Ke5 {[%clk 0:00:19.6]} 58. Qge2+ {[%clk
0:00:03.7]} 58... Kd4 {[%clk 0:00:20]} 59. c3+ {[%clk 0:00:03.6]} 59... Kc5
{[%clk 0:00:20.9]} 60. Qf5+ {[%clk 0:00:03.5]} 60... Kc6 {[%clk 0:00:21.2]} 61.
Qee6+ {[%clk 0:00:03.7]} 61... Kc7 {[%clk 0:00:22]} 62. Qff7+ {[%clk 0:00:03.9]}
62... Kd8 {[%clk 0:00:22.7]} 63. h8=Q# {[%clk 0:00:04.4]} 1-0

[Event "Early-Titled-Tuesday-Blitz-February-06-2024"]
[Site "Chess.com"]
[Date "2024.02.06"]
[Round "10"]
[White "MdChess1734"]
[Black "Der_Balak_3Halak"]
[Result "0-1"]
[WhiteElo "2383"]
[BlackElo "2511"]
[TimeControl "180+1"]
[EndTime "9:56:17 PST"]
[Termination "Der_Balak_3Halak won by resignation"]

1. e4 {[%clk 0:02:54.5]} 1... e5 {[%clk 0:02:59.7]} 2. Nf3 {[%clk 0:02:53.8]}
2... Nc6 {[%clk 0:03:00.1]} 3. Bb5 {[%clk 0:02:54.5]} 3... Bc5 {[%clk
0:03:00.6]} 4. O-O {[%clk 0:02:52.7]} 4... d6 {[%clk 0:02:58.2]} 5. c3 {[%clk
0:02:51.8]} 5... Nf6 {[%clk 0:02:54]} 6. d4 {[%clk 0:02:51.3]} 6... exd4 {[%clk
0:02:51.7]} 7. cxd4 {[%clk 0:02:50.8]} 7... Bb6 {[%clk 0:02:52.3]} 8. d5 {[%clk
0:02:49.3]} 8... a6 {[%clk 0:02:52]} 9. Ba4 {[%clk 0:02:48.7]} 9... Nxe4 {[%clk
0:02:50.5]} 10. dxc6 {[%clk 0:02:47.7]} 10... O-O {[%clk 0:02:48.4]} 11. Qd5
{[%clk 0:02:39.3]} 11... Qe8 {[%clk 0:02:23.5]} 12. cxb7 {[%clk 0:02:08.1]}
12... Bxb7 {[%clk 0:02:24.4]} 13. Qxb7 {[%clk 0:02:07.6]} 13... Qxa4 {[%clk
0:02:24]} 14. b3 {[%clk 0:02:06.3]} 14... Qb4 {[%clk 0:02:15.3]} 15. Ba3 {[%clk
0:02:03.1]} 15... Bxf2+ {[%clk 0:02:14.1]} 16. Rxf2 {[%clk 0:01:52.7]} 16...
Qxb7 {[%clk 0:02:15]} 17. Rf1 {[%clk 0:01:50.1]} 17... Qb6+ {[%clk 0:02:14.2]}
18. Kh1 {[%clk 0:01:48.8]} 18... Nf2+ {[%clk 0:02:14.8]} 19. Kg1 {[%clk
0:01:49]} 19... Nh3+ {[%clk 0:02:14.7]} 20. Kh1 {[%clk 0:01:49.4]} 20... Nf2+
{[%clk 0:02:14.1]} 21. Kg1 {[%clk 0:01:49.5]} 21... Ng4+ {[%clk 0:02:10.4]} 22.
Kh1 {[%clk 0:01:49.3]} 22... Rfe8 {[%clk 0:02:07.1]} 23. Nbd2 {[%clk 0:01:46.6]}
23... Ne3 {[%clk 0:02:05.4]} 24. Rfe1 {[%clk 0:01:32.1]} 24... Nc2 {[%clk
0:02:04.3]} 25. Nc4 {[%clk 0:01:27.5]} 25... Qa7 {[%clk 0:01:56.7]} 26. Rxe8+
{[%clk 0:01:23.9]} 26... Rxe8 {[%clk 0:01:57.6]} 27. Rf1 {[%clk 0:01:19.8]}
27... Nxa3 {[%clk 0:01:53.6]} 28. Nxa3 {[%clk 0:01:19.9]} 28... d5 {[%clk
0:01:53.9]} 29. Nc2 {[%clk 0:01:19.3]} 29... c5 {[%clk 0:01:53.6]} 30. Rd1
{[%clk 0:01:17.7]} 30... d4 {[%clk 0:01:54]} 31. Nce1 {[%clk 0:01:18.3]} 31...
a5 {[%clk 0:01:44.3]} 32. Nd3 {[%clk 0:01:18.4]} 32... a4 {[%clk 0:01:44.5]} 33.
Rc1 {[%clk 0:01:17.2]} 33... axb3 {[%clk 0:01:44.6]} 34. axb3 {[%clk 0:01:17]}
34... Rc8 {[%clk 0:01:32.6]} 35. h3 {[%clk 0:01:13.6]} 35... Rc7 {[%clk
0:01:25.7]} 36. Ng5 {[%clk 0:01:05.1]} 36... Qa3 {[%clk 0:01:17.4]} 37. Ne4
{[%clk 0:01:00.4]} 37... Qxb3 {[%clk 0:01:10.1]} 38. Nexc5 {[%clk 0:00:56.3]}
38... Qc3 {[%clk 0:01:05]} 39. Rxc3 {[%clk 0:00:50.8]} 39... dxc3 {[%clk
0:01:05.9]} 40. Nb3 {[%clk 0:00:49.3]} 40... f6 {[%clk 0:01:00.9]} 41. Kg1
{[%clk 0:00:48.7]} 41... Kf7 {[%clk 0:01:01.4]} 42. Kf2 {[%clk 0:00:48.9]} 42...
Ke6 {[%clk 0:01:02.3]} 43. Ke3 {[%clk 0:00:49.2]} 43... Kd5 {[%clk 0:01:02.9]}
44. Nbc1 {[%clk 0:00:47.3]} 44... Re7+ {[%clk 0:01:02.8]} 45. Kf2 {[%clk
0:00:41.3]} 45... Kc4 {[%clk 0:01:03.2]} 46. Nf4 {[%clk 0:00:41.3]} 46... c2
{[%clk 0:01:00.7]} 47. Nfe2 {[%clk 0:00:40.1]} 47... Kb4 {[%clk 0:00:49.9]} 48.
Ke1 {[%clk 0:00:39.6]} 48... Rd7 {[%clk 0:00:50.5]} 49. Kf2 {[%clk 0:00:38.9]}
49... Ka3 {[%clk 0:00:49]} 50. Ke3 {[%clk 0:00:39.1]} 50... Rd1 {[%clk
0:00:43.1]} 51. Nd3 {[%clk 0:00:36.7]} 51... g5 {[%clk 0:00:35.7]} 52. Nec1
{[%clk 0:00:30.3]} 52... h5 {[%clk 0:00:27.3]} 53. Ke4 {[%clk 0:00:30]} 53...
Ka4 {[%clk 0:00:18.7]} 54. Kf5 {[%clk 0:00:24.5]} 54... Kb5 {[%clk 0:00:18.9]}
55. Kg6 {[%clk 0:00:24.4]} 55... Kc4 {[%clk 0:00:19.1]} 56. Kxf6 {[%clk
0:00:08.3]} 56... Rxd3 {[%clk 0:00:18.6]} 57. Kxg5 {[%clk 0:00:08.1]} 57... Rd1
{[%clk 0:00:18.8]} 0-1